bitfinex-derivatives/quotes_ETHF0:USTF0_20210702
["timestamp","ask_amount","ask_price","bid_price","bid_amount"]
[1625241735485,2.73732323,2122.7,2118.9,1.0]
[1625241735584,2.73634836,2123.2,2118.9,1.0]
[1625241735734,2.73634836,2123.2,2119.2,1.15]
[1625241735834,2.46798655,2123.1,2119.3,1.0]
[1625241735938,2.73645645,2122.9,2119.3,1.0]
[1625241736033,5.0,2121.1,2119.3,1.0]
[1625241736139,2.1,2122.6,2119.3,17.099547]
[1625241736235,2.1,2122.6,2119.4,1.0]
[1625241736351,2.1,2122.6,2119.8,2.20527]
[1625241736352,2.20527,2119.9,2119.8,2.20527]
[1625241736445,0.36858788,2122.5,2119.8,2.20527]
[1625241736546,1.1,2122.4,2119.8,2.20527]
[1625241736750,0.3685689,2122.3,2119.8,2.20527]
[1625241736898,0.3685689,2122.3,2118.5,2.9878]
[1625241736998,5.0,2121.5,2118.5,2.9878]
[1625241737098,8.0,2121.5,2118.5,2.9878]
[1625241737198,1.1,2122.0,2118.5,2.9878]
[1625241737298,1.15,2122.0,2118.5,2.9878]
[1625241737648,48.5193,2122.6,2118.6,17.183614]
[1625241738050,3.73621464,2123.0,2118.6,17.183614]
[1625241738152,10.73599115,2123.2,2118.6,17.183614]
[1625241738302,2.20527,2119.4,2119.3,2.20527]
[1625241738500,3.2957,2119.8,2119.3,2.20527]
[1625241739453,8.0,2121.0,2119.3,2.20527]
[1625241740216,13.0,2121.0,2119.3,2.20527]
[1625241740316,4.41054,2119.4,2119.3,2.20527]
[1625241740566,4.41054,2119.4,2119.1,2.20527]
[1625241740667,4.41054,2119.4,2116.9,1.0]
[1625241740765,4.41054,2119.4,2115.5,2.64144402]
[1625241741219,4.41054,2119.4,2116.2,14.9007]
[1625241741317,7.87034,2119.4,2117.6,17.05558]
[1625241741820,7.87034,2119.4,2116.3,1.0]
[1625241741821,7.87034,2119.4,2116.7,3.252]
[1625241742325,7.87034,2119.4,2118.4,2.20527]
[1625241742477,2.20527,2118.6,2116.7,3.252]
[1625241744329,2.20527,2117.8,2117.2,2.20527]
[1625241744880,5.16127,2117.8,2117.2,2.20527]
[1625241745583,5.16127,2117.8,2117.0,2.20527]
[1625241746435,4.41054,2117.1,2117.0,2.20527]
[1625241746635,2.956,2117.8,2117.0,2.20527]
[1625241746736,8.0,2118.3,2117.0,4.49797]
[1625241747290,1.1,2119.2,2117.0,4.49797]
[1625241747889,8.0,2119.1,2117.0,4.49797]
[1625241748340,2.20527,2117.6,2117.5,2.20527]
[1625241748591,2.20527,2117.6,2117.0,4.49797]
[1625241749900,1.0,2119.2,2117.0,4.49797]
[1625241750049,15.1454,2120.7,2117.0,4.49797]
[1625241750147,1.0,2120.6,2117.1,1.0]
[1625241750248,15.1454,2120.7,2117.1,1.0]
[1625241750397,2.20527,2118.3,2118.2,2.20527]
[1625241750549,2.20527,2118.3,2117.9,2.20527]
[1625241750952,2.20527,2118.3,2117.6,3.3723]
[1625241751050,10.20527,2118.3,2117.6,3.3723]
[1625241751152,2.20527,2118.3,2117.6,3.3723]
[1625241752375,4.41054,2117.7,2117.6,5.57757]
[1625241752931,8.0,2118.8,2117.6,5.57757]
[1625241753229,1.1,2119.7,2117.6,5.57757]
[1625241753629,8.0,2119.6,2117.6,5.57757]
[1625241753730,13.0,2119.6,2117.6,5.57757]
[1625241754183,13.0,2119.6,2117.6,3.3723]
[1625241754381,2.20527,2117.9,2117.6,3.3723]
[1625241755134,8.0,2119.4,2117.6,3.3723]
[1625241755735,8.0,2119.4,2117.3,2.20527]
[1625241756086,13.0,2119.4,2117.3,2.20527]
[1625241756391,2.20527,2117.4,2117.3,2.20527]
[1625241756487,3.5033,2119.1,2117.3,2.20527]
[1625241756588,13.0,2119.0,2117.3,2.20527]
[1625241757539,8.0,2119.0,2117.3,2.20527]
[1625241757841,9.1,2119.0,2117.3,2.20527]
[1625241758040,14.1,2119.0,2117.3,2.20527]
[1625241758143,9.1,2119.0,2117.3,2.20527]
[1625241758240,8.0,2119.0,2117.3,2.20527]
[1625241758441,2.20527,2117.4,2117.3,2.20527]
[1625241760050,8.0,2119.0,2117.3,2.20527]
[1625241760147,8.0,2119.0,2117.3,4.81997]
[1625241760449,2.20527,2117.8,2117.3,7.02524]
[1625241761801,2.20527,2117.8,2117.3,2.6147]
[1625241761902,2.20527,2117.8,2115.3,6.0]
[1625241762000,10.20527,2117.8,2115.3,6.0]
[1625241762248,10.20527,2117.8,2115.3,5.0]
[1625241762502,2.20527,2117.0,2116.9,2.20527]
[1625241764505,4.41054,2117.0,2116.9,2.20527]
[1625241765558,4.41054,2117.0,2116.7,2.20527]
[1625241765660,7.35184,2117.0,2116.7,2.20527]
[1625241766310,7.35184,2117.0,2115.2,15.1088]
[1625241766415,7.35184,2117.0,2115.2,20.1088]
[1625241766565,2.20527,2116.6,2116.4,2.20527]
[1625241768521,2.20527,2116.5,2116.4,2.20527]
[1625241768868,2.20527,2116.6,2116.4,2.20527]
[1625241768969,2.20527,2116.6,2116.4,5.87277]
[1625241772481,2.20527,2116.6,2116.4,3.6675]
[1625241772581,2.20527,2116.5,2116.2,2.20527]
[1625241774542,2.20527,2116.3,2116.2,2.20527]
[1625241776143,2.20527,2116.5,2116.2,2.20527]
[1625241776242,2.20527,2116.5,2116.2,5.75707]
[1625241777448,2.20527,2116.5,2116.2,2.20527]
[1625241777850,10.20527,2116.5,2116.2,2.20527]
[1625241778149,2.20527,2116.5,2116.2,2.20527]
[1625241778651,2.20527,2116.5,2116.2,5.31647]
[1625241780558,2.20527,2116.5,2116.4,2.20527]
[1625241780904,8.0,2117.7,2116.4,2.20527]
[1625241781706,8.0,2117.7,2116.2,2.20527]
[1625241781956,13.0,2117.7,2116.2,2.20527]
[1625241782561,4.41054,2116.3,2116.2,2.20527]
[1625241782663,12.41054,2116.3,2115.8,2.20527]
[1625241783659,12.41054,2116.3,2114.7,14.7331]
[1625241784611,2.20527,2115.4,2114.7,14.7331]
[1625241784864,10.20527,2115.4,2114.7,14.7331]
[1625241785364,2.20527,2115.4,2114.7,14.7331]
[1625241786665,2.20527,2114.9,2114.7,16.93837]
[1625241786767,2.20527,2114.9,2114.7,2.20527]
[1625241787068,2.20527,2115.4,2114.7,2.20527]
[1625241787167,2.20527,2115.4,2114.7,4.77257]
[1625241787267,2.20527,2115.4,2114.8,45.0813]
[1625241787367,1.0,2117.0,2114.8,45.0813]
[1625241787468,15.8479,2117.1,2114.8,45.0813]
[1625241787469,14.7479,2117.1,2114.8,45.0813]
[1625241787625,22.7479,2117.1,2114.7,4.77257]
[1625241787720,22.7479,2117.1,2114.9,17.156539]
[1625241787970,22.7479,2117.1,2114.7,4.77257]
[1625241788420,6.1,2117.0,2114.7,4.77257]
[1625241788521,8.0,2116.9,2114.7,4.77257]
[1625241788622,2.20527,2115.0,2114.7,4.77257]
[1625241790832,2.20527,2115.0,2114.7,2.20527]
[1625241790930,10.20527,2115.0,2114.4,2.20527]
[1625241791040,10.20527,2115.0,2113.5,18.50659115]
[1625241791143,10.20527,2115.0,2113.5,15.8056]
[1625241791241,2.20527,2115.0,2113.5,15.8056]
[1625241791949,10.20527,2115.0,2113.6,17.130832]
[1625241792499,2.20527,2115.0,2113.6,17.130832]
[1625241792599,2.20527,2114.2,2114.1,2.20527]
[1625241792701,2.20527,2114.2,2114.1,5.94247]
[1625241792949,1.08600088,2114.2,2114.1,5.94247]
[1625241793650,1.0,2115.8,2114.1,5.94247]
[1625241793748,1.1,2116.1,2114.1,5.94247]
[1625241793897,3.59085406,2117.7,2114.1,5.94247]
[1625241794000,1.1,2116.4,2114.1,6.94247]
[1625241794098,1.1,2116.4,2114.1,5.94247]
[1625241794250,1.1,2116.4,2114.2,17.253392]
[1625241794451,47.1481,2115.6,2114.1,5.94247]
[1625241794651,2.20527,2114.5,2114.4,2.20527]
[1625241794850,10.20527,2114.5,2114.4,2.20527]
[1625241796051,10.20527,2114.5,2114.1,2.20527]
[1625241796153,13.26117,2114.5,2112.6,2.69935379]
[1625241796254,13.26117,2114.5,2112.5,2.69892789]
[1625241796255,18.26117,2114.5,2112.5,2.69892789]
[1625241796352,13.26117,2114.5,2112.5,2.69892789]
[1625241796567,13.26117,2114.5,2112.3,17.73172067]
[1625241796716,2.20527,2113.4,2113.3,2.20527]
[1625241796815,5.92497,2113.4,2113.3,2.20527]
[1625241798678,8.13024,2113.4,2113.3,2.20527]
[1625241798829,16.13024,2113.4,2113.3,2.20527]
[1625241799229,16.13024,2113.4,2113.0,2.20527]
[1625241799531,8.13024,2113.4,2113.0,2.20527]
[1625241800731,2.20527,2113.1,2113.0,2.20527]
[1625241801832,2.19927,2113.1,2113.0,2.20527]
[1625241802841,2.19927,2113.1,2112.7,2.20527]
[1625241803247,2.19927,2113.1,2111.6,1.0]
[1625241803347,2.19927,2113.1,2111.4,2.69616246]
[1625241803898,10.19927,2113.1,2111.5,17.045682]
[1625241804700,4.41054,2111.6,2111.4,2.20527]
[1625241804899,2.20527,2111.6,2111.4,2.20527]
[1625241804999,1.6095275,2111.6,2111.4,2.20527]
[1625241807506,1.0,2112.8,2111.4,2.20527]
[1625241807608,8.0,2113.3,2111.4,4.65397]
[1625241807860,8.0,2113.3,2111.5,17.32542]
[1625241808207,8.0,2113.3,2111.4,4.65397]
[1625241808307,3.5087,2113.7,2111.4,4.65397]
[1625241808558,3.5087,2113.7,2111.5,17.125419]
[1625241808707,2.20527,2112.3,2112.2,2.20527]
[1625241808959,1.08497036,2112.3,2112.2,2.20527]
[1625241811917,1.08497036,2112.3,2111.0,1.0]
[1625241811918,9.08497036,2112.3,2111.0,1.0]
[1625241812017,9.08497036,2112.3,2107.0,4.11377363]
[1625241812167,9.08497036,2112.3,2110.2,3.69186293]
[1625241812272,9.08497036,2112.3,2110.2,1.0]
[1625241812371,44.0971,2111.8,2110.1,5.0]
[1625241812470,46.7421,2111.8,2110.0,0.05]
[1625241812722,46.7421,2111.8,2111.3,2.20527]
[1625241812824,2.20527,2111.4,2111.3,2.20527]
[1625241814174,6.0,2113.6,2111.3,2.20527]
[1625241814175,1.0,2113.6,2111.3,2.20527]
[1625241814325,20.6364,2113.9,2111.3,5.82127]
[1625241814423,15.6364,2113.9,2111.3,5.82127]
[1625241814773,2.20527,2112.6,2112.1,2.20527]
[1625241814922,2.20527,2112.6,2112.1,5.92567]
[1625241815275,15.6364,2113.9,2112.1,5.92567]
[1625241815375,15.6364,2113.9,2112.1,10.92567]
[1625241815528,1.0,2115.0,2112.1,10.92567]
[1625241815672,1.0,2115.5,2112.1,10.92567]
[1625241815774,8.0,2115.1,2112.2,17.064116]
[1625241816525,8.0,2115.1,2112.2,22.064116]
[1625241816825,2.20527,2114.8,2114.7,2.20527]
[1625241816924,2.20527,2114.8,2114.7,5.51787]
[1625241817278,2.20527,2114.8,2114.7,3.3126]
[1625241818582,2.20527,2114.8,2112.7,6.0]
[1625241818679,2.20527,2114.8,2112.7,5.0]
[1625241818781,2.20527,2114.5,2114.2,2.20527]
[1625241818879,2.20527,2114.5,2114.2,5.33637]
[1625241819580,15.2332,2115.5,2114.2,5.33637]
[1625241820283,56.8187,2115.5,2114.2,5.33637]
[1625241820584,8.0,2115.4,2114.2,5.33637]
[1625241820833,2.20527,2114.7,2114.6,2.20527]
[1625241821035,2.20527,2114.7,2114.2,2.20527]
[1625241821184,2.20527,2114.7,2112.6,15.3354]
[1625241821185,10.20527,2114.7,2112.6,15.3354]
[1625241821634,10.20527,2114.7,2112.1,8.7204]
[1625241821836,10.20527,2114.7,2112.7,17.310782]
[1625241821935,2.20527,2114.7,2112.7,20.060082]
[1625241822184,2.20527,2114.7,2112.8,5.0]
[1625241822385,2.20527,2114.7,2112.8,22.246842]
[1625241822785,2.20527,2114.7,2114.2,2.20527]
[1625241823386,8.0,2114.6,2113.8,2.3755]
[1625241823536,2.20527,2114.7,2113.8,2.3755]
[1625241824238,8.0,2114.6,2112.7,1.0]
[1625241824389,8.0,2114.6,2111.5,5.0]
[1625241824488,8.0,2114.6,2111.7,1.0]
[1625241824786,2.20527,2113.5,2112.8,2.20527]
[1625241824887,5.60557,2113.5,2112.8,2.20527]
[1625241824993,13.60557,2113.5,2112.8,2.20527]
[1625241825459,13.60557,2113.5,2112.5,17.11747]
[1625241826208,13.60557,2113.5,2112.5,14.9122]
[1625241826809,2.20527,2112.6,2112.5,14.9122]
[1625241826909,2.20527,2112.6,2112.0,2.20527]
[1625241828719,8.0,2113.5,2112.0,2.20527]
[1625241828819,2.20527,2113.4,2113.0,2.20527]
[1625241829171,10.20527,2113.4,2113.0,2.20527]
[1625241829421,10.20527,2113.4,2112.0,2.4515]
[1625241829525,13.32157,2113.4,2112.0,2.4515]
[1625241829880,13.32157,2113.4,2110.9,5.0]
[1625241830473,13.32157,2113.4,2111.0,17.132679]
[1625241830825,2.20527,2112.3,2112.2,2.20527]
[1625241832124,11.1163,2113.4,2112.2,2.20527]
[1625241832825,2.20527,2112.6,2112.5,2.20527]
[1625241832925,2.20527,2112.6,2112.2,2.20527]
[1625241833675,10.20527,2112.6,2112.2,2.20527]
[1625241833826,13.73717,2112.6,2112.2,2.20527]
[1625241834227,5.73717,2112.6,2112.2,2.20527]
[1625241834882,2.20527,2112.3,2112.2,2.20527]
[1625241836687,5.73717,2112.6,2112.2,2.20527]
[1625241836785,2.20527,2112.6,2112.2,2.20527]
[1625241836884,2.20527,2112.3,2112.2,2.20527]
[1625241838937,2.20527,2112.3,2111.7,4.41054]
[1625241840893,2.20527,2111.8,2111.7,4.41054]
[1625241847317,5.54477,2111.8,2110.3,6.986]
[1625241847568,13.54477,2111.8,2110.3,6.986]
[1625241847871,5.54477,2111.8,2110.3,6.986]
[1625241848072,5.54477,2111.8,2110.0,4.809]
[1625241848271,5.54477,2111.8,2110.4,17.323473]
[1625241848621,5.54477,2111.8,2110.2,46.7858]
[1625241848722,2.20527,2111.8,2110.3,17.254398]
[1625241848973,2.20527,2111.8,2111.4,2.20527]
[1625241849072,2.20527,2111.8,2111.4,5.41187]
[1625241850924,2.20527,2111.5,2111.4,5.41187]
[1625241851023,2.20527,2111.8,2111.4,5.41187]
[1625241852027,2.20527,2111.8,2111.4,3.2066]
[1625241852128,2.20527,2111.8,2110.5,2.3809]
[1625241853034,2.20527,2111.8,2111.4,2.20527]
[1625241853535,2.20527,2111.8,2111.3,3.041]
[1625241854988,2.20527,2111.4,2111.2,4.41054]
[1625241856242,10.20527,2111.4,2110.0,5.809]
[1625241856393,10.20527,2111.4,2110.0,4.809]
[1625241856816,56.4623,2111.2,2110.0,4.809]
[1625241857066,2.20527,2110.7,2110.6,2.20527]
[1625241857166,5.16167,2110.7,2110.6,2.20527]
[1625241857563,5.16167,2110.7,2110.3,2.20527]
[1625241859068,2.20527,2110.4,2110.3,2.20527]
[1625241861628,2.20527,2110.7,2110.3,2.20527]
[1625241862932,2.20527,2110.7,2110.3,2.19927]
[1625241863034,2.20527,2110.4,2110.3,2.19927]
[1625241863437,2.20527,2110.4,2110.0,2.25527]
[1625241864138,3.3611,2110.5,2110.0,2.25527]
[1625241864239,2.20527,2110.7,2110.0,2.25527]
[1625241865037,2.20527,2110.2,2110.0,2.25527]
[1625241867042,2.20527,2110.1,2110.0,2.25527]
[1625241873128,10.0,2401.0,2110.0,2.25527]
[1625241873129,1.1,2111.4,2110.0,2.25527]
[1625241873227,3.1851,2112.2,2110.0,2.25527]
[1625241873228,1.1,2112.1,2110.0,7.25527]
[1625241873377,0.9356,2113.6,2110.0,10.84127]
[1625241873626,8.0,2112.5,2110.0,10.84127]
[1625241873827,8.0,2112.5,2110.3,48.6717]
[1625241873927,14.7174,2112.9,2110.3,53.6717]
[1625241874227,15.7174,2112.9,2110.4,17.211555]
[1625241874328,14.7174,2112.9,2110.4,18.211555]
[1625241874783,8.0,2112.8,2110.4,18.211555]
[1625241874879,8.0,2112.8,2110.4,17.211555]
[1625241875131,2.20527,2111.9,2111.7,2.20527]
[1625241877085,4.41054,2111.9,2111.7,2.20527]
[1625241878642,15.23494,2111.9,2111.7,2.20527]
[1625241878941,7.23494,2111.9,2111.7,2.20527]
[1625241879341,7.23494,2111.9,2110.5,1.0]
[1625241879441,7.23494,2111.9,2110.0,4.809]
[1625241879641,15.23494,2111.9,2110.0,4.809]
[1625241880091,15.23494,2111.9,2110.1,17.229961]
[1625241880944,15.23494,2111.9,2110.0,4.809]
[1625241881193,2.20527,2110.9,2110.7,2.20527]
[1625241881843,10.8244,2111.9,2110.7,2.20527]
[1625241883146,2.20527,2111.1,2111.0,2.20527]
[1625241883247,5.37857,2111.1,2111.0,2.20527]
[1625241884146,5.37857,2111.1,2110.0,0.05]
[1625241885198,2.20527,2110.7,2110.3,2.20527]
[1625241885849,5.37857,2111.1,2110.3,2.20527]
[1625241885850,3.1733,2111.1,2110.3,2.20527]
[1625241886551,11.1733,2111.1,2110.3,2.20527]
[1625241887151,2.20527,2110.8,2110.3,2.20527]
[1625241887606,8.0,2110.7,2110.0,0.05]
[1625241889204,4.41054,2110.1,2110.0,0.05]
[1625241890005,3.1733,2111.1,2110.0,0.05]
[1625241890107,1.1,2111.3,2110.0,0.05]
[1625241890506,8.0,2111.2,2110.0,0.05]
[1625241891220,2.20527,2110.3,2110.1,2.20527]
[1625241893381,2.20527,2110.5,2110.1,2.20527]
[1625241893482,15.0324,2111.8,2110.1,2.20527]
[1625241894186,15.0324,2111.8,2110.2,17.083225]
[1625241894386,15.0324,2111.8,2110.3,5.0]
[1625241894584,1.0,2112.7,2110.3,8.3349]
[1625241894738,8.0,2112.8,2110.4,17.12946]
[1625241894838,8.0,2112.8,2110.7,45.0463]
[1625241894936,8.0,2112.8,2110.7,45.9958]
[1625241895038,8.0,2112.8,2110.7,45.0463]
[1625241895186,14.4387,2113.1,2112.4,2.20527]
[1625241895187,2.20527,2112.5,2112.4,2.20527]
[1625241895288,14.4387,2113.1,2112.4,4.98527]
[1625241895587,8.0,2113.1,2112.4,4.98527]
[1625241896391,59.8973,2114.0,2112.4,4.98527]
[1625241896392,59.8973,2114.0,2112.4,2.78]
[1625241896592,8.0,2113.9,2112.4,2.78]
[1625241896693,8.0,2113.9,2112.1,2.20527]
[1625241896994,13.0,2113.9,2112.1,2.20527]
[1625241897197,2.20527,2112.8,2112.1,2.20527]
[1625241899250,2.20527,2112.8,2112.6,2.20527]
[1625241900203,8.0,2112.7,2112.6,2.20527]
[1625241900304,10.4141,2112.7,2112.6,2.20527]
[1625241900755,57.0862,2112.7,2112.6,2.20527]
[1625241900855,49.0862,2112.7,2112.6,2.20527]
[1625241901057,2.4141,2112.7,2112.6,2.20527]
[1625241901721,2.20527,2112.8,2112.6,2.20527]
[1625241902890,1.0,2114.0,2112.6,5.22297]
[1625241903002,15.0706,2114.3,2112.6,5.22297]
[1625241903196,8.0,2114.2,2112.6,5.22297]
[1625241903346,2.20527,2113.8,2113.6,2.20527]
[1625241903548,15.0706,2114.3,2113.6,2.20527]
[1625241903694,1.93528245,2114.9,2113.6,2.20527]
[1625241903999,1.93466312,2115.6,2113.6,2.20527]
[1625241904299,8.0,2115.5,2113.6,2.20527]
[1625241904546,1.0,2115.9,2113.6,2.20527]
[1625241904647,14.9391,2116.0,2113.6,2.20527]
[1625241904998,14.9391,2116.0,2113.7,17.095543]
[1625241905199,14.9391,2116.0,2113.7,22.095543]
[1625241905299,2.20527,2115.3,2115.0,2.20527]
[1625241906254,2.20527,2115.5,2115.0,2.20527]
[1625241907702,10.20527,2115.5,2115.0,2.20527]
[1625241907804,10.20527,2115.5,2113.6,1.0]
[1625241907903,13.25517,2115.5,2112.7,1.0]
[1625241908003,13.25517,2115.5,2112.0,21.67118943]
[1625241908004,13.25517,2115.5,2112.0,18.9715]
[1625241908255,14.25517,2115.5,2112.0,18.9715]
[1625241908407,14.25517,2115.5,2112.6,5.0]
[1625241908505,13.25517,2115.5,2112.6,25.805534]
[1625241909259,2.20527,2114.6,2114.5,2.20527]
[1625241910259,2.20527,2114.6,2112.7,1.0]
[1625241910360,2.20527,2114.6,2112.6,5.0]
[1625241910465,2.20527,2114.6,2112.5,15.6817]
[1625241910862,10.20527,2114.6,2112.6,17.153382]
[1625241911174,10.20527,2114.6,2112.4,17.296589]
[1625241911276,2.20527,2113.9,2113.6,2.20527]
[1625241911378,5.59667,2113.9,2113.6,2.20527]
[1625241911682,13.59667,2113.9,2113.4,2.20527]
[1625241911879,65.78037,2113.9,2113.4,2.20527]
[1625241911980,57.78037,2113.9,2113.4,2.20527]
[1625241912083,65.78037,2113.9,2113.4,2.20527]
[1625241912432,57.78037,2113.9,2113.4,2.20527]
[1625241913130,8.0,2113.8,2112.1,1.0]
[1625241913231,8.0,2113.8,2112.0,15.5673]
[1625241913329,2.20527,2112.7,2112.4,2.20527]
[1625241913430,4.78377,2112.7,2112.4,2.20527]
[1625241914382,12.78377,2112.7,2112.4,2.20527]
[1625241914485,4.78377,2112.7,2112.4,2.20527]
[1625241915033,2.5785,2112.7,2112.4,2.20527]
[1625241915282,4.78377,2112.7,2112.4,2.20527]
[1625241917334,2.20527,2112.5,2112.4,2.20527]
[1625241917886,10.20527,2112.5,2112.4,2.20527]
[1625241918287,10.20527,2112.5,2110.9,1.0]
[1625241918391,10.20527,2112.5,2110.8,14.7858]
[1625241918638,10.20527,2112.5,2110.3,1.0]
[1625241918839,2.20527,2112.5,2110.3,1.0]
[1625241919091,2.20527,2112.5,2110.4,5.0]
[1625241919339,2.20527,2112.2,2111.7,2.20527]
[1625241919441,4.97487,2112.2,2111.7,2.20527]
[1625241919790,4.97487,2112.2,2111.5,2.20527]
[1625241920693,2.20527,2112.2,2111.5,2.20527]
[1625241921495,2.20527,2112.2,2111.5,4.41054]
[1625241922197,2.20527,2112.5,2111.5,4.41054]
[1625241922296,2.20527,2112.5,2111.5,7.17454]
[1625241922851,2.20527,2112.5,2111.6,17.128372]
[1625241923100,1.0,2113.8,2111.6,17.128372]
[1625241923200,1.1,2114.2,2111.6,17.128372]
[1625241923399,2.20527,2113.3,2112.8,2.20527]
[1625241923500,2.20527,2113.3,2112.8,5.39827]
[1625241924853,8.0,2113.2,2112.8,5.39827]
[1625241924954,8.0,2113.2,2112.8,2.20527]
[1625241925358,8.0,2113.2,2111.5,1.0]
[1625241925456,2.20527,2112.9,2112.0,2.20527]
[1625241926106,8.0,2112.8,2112.0,2.20527]
[1625241926206,11.1737,2112.8,2112.0,2.20527]
[1625241926307,3.1737,2112.8,2112.0,2.20527]
[1625241926809,11.1737,2112.8,2112.0,2.20527]
[1625241926961,11.1737,2112.8,2111.8,2.20527]
[1625241927413,2.20527,2111.9,2111.8,2.20527]
[1625241928164,2.20527,2112.1,2111.8,2.20527]
[1625241933492,2.20527,2112.1,2112.0,2.20527]
[1625241934800,10.20527,2112.1,2111.8,2.20527]
[1625241934897,5.99037,2112.1,2111.8,2.20527]
[1625241935048,13.99037,2112.1,2111.0,15.0529]
[1625241935450,2.20527,2111.6,2111.3,2.20527]
[1625241935551,4.78447,2111.6,2111.3,2.20527]
[1625241935752,60.36837,2111.6,2111.3,2.20527]
[1625241937457,2.20527,2111.5,2111.3,2.20527]
[1625241939462,8.0,2111.4,2111.3,2.20527]
[1625241939860,2.20527,2111.5,2111.3,2.20527]
[1625241940111,10.20527,2111.5,2111.3,2.20527]
[1625241940212,2.20527,2111.5,2111.3,2.20527]
[1625241941015,8.0,2111.4,2111.3,2.20527]
[1625241941412,2.20527,2111.5,2111.3,2.20527]
[1625241942065,8.0,2111.4,2111.3,2.20527]
[1625241942517,2.20527,2111.5,2111.3,2.20527]
[1625241944420,2.20527,2111.5,2111.3,7e-05]
[1625241944521,8.0,2111.4,2111.3,7e-05]
[1625241944621,11.2373,2111.4,2111.3,7e-05]
[1625241945022,3.2373,2111.4,2111.3,7e-05]
[1625241945423,11.2373,2111.4,2111.3,7e-05]
[1625241946074,11.2373,2111.4,2110.1,5.759]
[1625241946173,11.2373,2111.4,2110.1,4.759]
[1625241947627,2.20527,2110.9,2110.8,2.20527]
[1625241947730,5.77347,2110.9,2110.8,2.20527]
[1625241949392,13.77347,2110.9,2110.1,4.759]
[1625241949643,4.41054,2110.2,2110.1,4.759]
[1625241950094,12.41054,2110.2,2110.1,4.6009]
[1625241950195,12.41054,2110.2,2110.0,2.25527]
[1625241950196,57.4472,2110.1,2110.0,2.25527]
[1625241950296,57.4472,2110.1,2110.0,0.05]
[1625241950647,65.4472,2110.1,2110.0,0.05]
[1625241951650,8.0,2110.1,2110.0,0.05]
[1625241951751,4.41054,2110.2,2110.0,0.05]
[1625241952051,2.20527,2110.2,2110.0,0.05]
[1625241953603,2.20527,2110.2,2110.1,2.20527]
[1625241953804,2.20527,2110.2,2110.0,0.05]
[1625241955660,2.20527,2110.2,2110.1,2.20527]
[1625241955811,2.20527,2110.2,2110.0,0.05]
[1625241957616,2.20527,2110.9,2110.1,2.20527]
[1625241957718,2.20527,2110.9,2110.1,5.53667]
[1625241959669,2.20527,2110.6,2110.4,2.20527]
[1625241959768,2.20527,2110.6,2110.1,5.53667]
[1625241961572,9.0,2111.6,2110.1,5.53667]
[1625241961681,2.20527,2110.6,2110.5,2.20527]
[1625241962085,2.20527,2110.6,2110.1,5.53667]
[1625241962183,2.20527,2110.6,2110.1,2.20527]
[1625241962388,2.20527,2110.6,2110.0,0.05]
[1625241963654,2.20527,2110.6,2110.1,2.20527]
[1625241963804,52.94987,2110.6,2110.1,2.20527]
[1625241965707,2.20527,2110.2,2110.1,2.20527]
[1625241966957,2.20527,2110.2,2110.0,0.05]
[1625241967711,2.20527,2110.1,2110.0,0.05]
[1625241968813,10.20527,2110.1,2110.0,0.05]
[1625241969013,10.20527,2110.1,2109.3,6.96427]
[1625241969263,10.20527,2110.1,2109.3,2.20527]
[1625241969565,10.20527,2110.1,2109.1,2.20527]
[1625241969665,4.41054,2109.2,2109.1,2.20527]
[1625241969765,15.01504,2109.2,2109.1,2.20527]
[1625241969864,7.01504,2109.2,2109.1,2.20527]
[1625241970716,65.75734,2109.2,2109.1,2.20527]
[1625241971016,73.75734,2109.2,2109.1,2.20527]
[1625241971820,65.75734,2109.2,2109.1,2.20527]
[1625241972721,73.75734,2109.2,2108.8,2.20527]
[1625241972922,65.75734,2109.2,2108.8,2.20527]
[1625241973325,8.0,2109.1,2107.9,5.759]
[1625241973429,8.0,2109.1,2107.9,4.759]
[1625241973728,2.20527,2108.4,2108.3,2.20527]
[1625241976532,2.20527,2108.7,2108.3,2.20527]
[1625241976639,2.20527,2108.7,2108.3,5.88477]
[1625241976748,1.0,2109.6,2108.3,5.88477]
[1625241976850,1.9403,2110.4,2108.3,5.88477]
[1625241976951,5.0,2110.5,2108.3,6.88477]
[1625241977098,1.37829216,2111.5,2108.3,6.88477]
[1625241977199,8.0,2110.5,2108.3,6.88477]
[1625241977700,2.20527,2109.2,2108.9,2.20527]
[1625241977801,2.20527,2109.2,2108.4,17.06402]
[1625241977950,2.20527,2109.4,2108.4,17.06402]
[1625241978953,1.1,2110.8,2108.5,5.0]
[1625241979055,16.1342,2111.0,2108.6,1.0]
[1625241979153,16.1342,2111.0,2108.6,1.9512]
[1625241979254,16.1342,2111.0,2108.6,19.244116]
[1625241979402,15.1342,2111.0,2108.7,5.0]
[1625241979753,2.20527,2110.9,2110.8,2.20527]
[1625241979854,2.20527,2110.9,2110.8,4.60507]
[1625241981006,47.2815,2111.8,2110.8,4.60507]
[1625241981106,8.0,2111.6,2110.8,4.60507]
[1625241981309,47.2815,2111.8,2110.8,4.60507]
[1625241981405,47.2815,2111.8,2110.8,2.3998]